bitfinex/quotes_SOLUSD_20250915
["timestamp","ask_amount","ask_price","bid_price","bid_amount"]
[1757897089596,26.0,241.16,241.15,4.86679659]
[1757897089795,26.0,241.16,241.15,5.81863592]
[1757897091018,26.0,241.18,241.15,5.81863592]
[1757897091213,26.0,241.17,241.16,0.66]
[1757897091621,26.0,241.17,241.15,4.20677188]
[1757897091826,26.0,241.17,241.15,4.86677188]
[1757897092028,26.0,241.17,241.15,4.20677188]
[1757897092223,26.0,241.17,241.16,0.66]
[1757897093298,26.0,241.17,241.16,4.14662464]
[1757897093609,13.59559401,241.23,241.16,16.12502558]
[1757897093807,32.93,241.27,241.21,0.95183933]
[1757897094008,13.59559401,241.26,241.21,1.61183933]
[1757897094216,13.59559401,241.26,241.22,0.66]
[1757897094217,26.0,241.23,241.22,0.66]
[1757897094901,13.59559401,241.26,241.22,1.61183933]
[1757897095122,26.0,241.24,241.23,1.62183933]
[1757897095706,26.0,241.24,241.23,5.76726071]
[1757897096523,0.03,241.27,241.23,16.13081416]
[1757897096724,0.03,241.27,241.26,0.95183933]
[1757897097104,0.03,241.27,241.26,1.62183933]
[1757897097738,0.03,241.27,241.26,5.76674524]
[1757897098512,0.03,241.27,241.26,4.81490591]
[1757897099224,0.03,241.27,241.26,4.14490591]
[1757897099825,0.03,241.27,241.26,4.81490591]
[1757897100338,0.03,241.27,241.26,19.76674524]
[1757897100836,0.03,241.27,241.26,18.81490591]
[1757897101014,0.03,241.27,241.26,18.14490591]
[1757897101215,0.03,241.27,241.26,19.76674524]
[1757897102619,0.03,241.27,241.26,18.81490591]
[1757897102824,0.03,241.27,241.26,19.76674524]
[1757897104251,0.03,241.32,241.26,19.76674524]
[1757897104252,0.03,241.32,241.26,30.12901001]
[1757897104451,0.03,241.32,241.31,0.95183933]
[1757897104829,0.03,241.39,241.31,19.42919665]
[1757897105031,0.03,241.39,241.36,0.95183933]
[1757897105539,0.03,241.39,241.36,1.62183933]
[1757897105736,0.03,241.39,241.36,2.15506734]
[1757897105961,0.03,241.39,241.36,6.29825593]
[1757897107133,0.03,241.39,241.36,7.95962697]
[1757897108475,0.03,241.42,241.36,39.03354144]
[1757897108756,0.03,241.42,241.41,1.48506734]
[1757897109143,0.03,241.42,241.41,2.13506734]
[1757897109933,0.03,241.42,241.41,20.27739781]
[1757897112459,1e-08,241.44,241.43,20.0]
[1757897112678,1e-08,241.44,241.43,35.17013468]
[1757897112842,1e-08,241.44,241.43,35.82013468]
[1757897113036,1e-08,241.44,241.43,36.23433341]
[1757897113243,1e-08,241.44,241.43,35.82013468]
[1757897113454,1e-08,241.44,241.43,2.13506734]
[1757897113633,1e-08,241.49,241.43,43.62992742]
[1757897113855,0.1,241.59,241.48,1.48506734]
[1757897114044,0.1,241.59,241.46,20.0]
[1757897114045,0.1,241.59,241.51,5.62568263]
[1757897114464,0.1,241.59,241.51,7.28601926]
[1757897114642,0.1,241.59,241.51,7.93601926]
[1757897116650,26.0,241.58,241.51,6.27568263]
[1757897117355,1e-08,241.54,241.51,17.04128238]
[1757897117552,1e-08,241.54,241.53,7.1104071]
[1757897118177,1e-08,241.54,241.53,7.7604071]
[1757897118684,1e-08,241.54,241.53,6.27533976]
[1757897120375,1e-08,241.54,241.53,5.62533976]
[1757897120873,1e-08,241.54,241.53,19.62533976]
[1757897121178,0.66000001,241.54,241.53,19.62533976]
[1757897121850,1e-08,241.54,241.53,21.7604071]
[1757897122267,0.1,241.64,241.58,1.48506734]
[1757897122471,0.1,241.64,241.61,1.48506734]
[1757897122976,0.1,241.64,241.61,2.13506734]
[1757897123555,0.1,241.64,241.61,1.48506734]
[1757897123757,0.76,241.64,241.61,1.48506734]
[1757897124153,0.76,241.64,241.61,5.62396887]
[1757897124679,0.1,241.64,241.61,30.6212227]
[1757897124974,0.03,241.68,241.63,2.97013468]
[1757897125148,0.03,241.68,241.62,0.65]
[1757897125149,0.03,241.68,241.67,2.97013468]
[1757897125349,0.03,241.68,241.67,2.13506734]
[1757897125979,0.03,241.68,241.67,6.2729413]
[1757897127268,0.03,241.68,241.67,5.6229413]
[1757897127660,0.69,241.68,241.67,5.6229413]
[1757897127861,0.69,241.68,241.67,4.13787396]
[1757897128060,0.03,241.68,241.67,4.13787396]
[1757897128261,0.03,241.68,241.67,5.6229413]
[1757897129569,0.03,241.68,241.67,4.13787396]
[1757897129874,0.69,241.68,241.65,4.13808292]
[1757897130060,0.66,241.67,241.65,18.13808292]
[1757897130260,0.66,241.66,241.62,25.83180645]
[1757897130458,0.66,241.65,241.62,15.48506734]
[1757897130778,26.0,241.67,241.62,19.62369052]
[1757897130951,26.0,241.67,241.59,24.34797511]
[1757897130952,0.66,241.64,241.59,24.34797511]
[1757897131155,0.66,241.64,241.59,25.83304245]
[1757897131579,0.66,241.63,241.59,15.48506734]
[1757897132270,26.66,241.63,241.59,19.62419751]
[1757897132982,26.0,241.63,241.59,19.62419751]
[1757897133674,26.0,241.63,241.59,30.62230794]
[1757897133875,26.0,241.63,241.61,1.48506734]
[1757897134051,26.0,241.63,241.62,4.13873023]
[1757897134859,26.0,241.63,241.59,25.83317777]
[1757897135175,26.66,241.63,241.59,25.83317777]
[1757897135867,0.66,241.62,241.59,14.0]
[1757897136776,26.0,241.63,241.59,14.0]
[1757897136777,0.66,241.61,241.59,14.0]
[1757897137075,0.66,241.6,241.59,14.0]
[1757897137277,26.0,241.59,241.57,14.0]
[1757897137480,0.66,241.58,241.56,4.13974658]
[1757897137676,26.0,241.59,241.56,4.13974658]
[1757897137881,26.0,241.57,241.54,18.1400384]
[1757897138062,26.0,241.57,241.52,14.0]
[1757897138063,0.66,241.56,241.52,14.0]
[1757897138477,26.0,241.57,241.53,4.14013515]
[1757897138985,26.68,241.57,241.53,18.14013515]
[1757897140455,0.68,241.56,241.53,18.14013515]
[1757897140656,3.29653706,241.56,241.51,15.54506734]
[1757897140866,26.0,241.53,241.51,14.06]
[1757897141067,0.68,241.52,241.51,14.06]
[1757897141269,26.68,241.52,241.51,14.06]
[1757897142072,26.68,241.52,241.51,0.06]
[1757897142985,40.27559401,241.52,241.51,0.06]
[1757897143178,41.76066135,241.52,241.51,0.06]
[1757897143379,74.04066135,241.52,241.51,0.06]
[1757897144580,72.55559401,241.52,241.51,0.06]
[1757897144772,74.04066135,241.52,241.51,0.06]
[1757897146287,40.27559401,241.52,241.51,0.06]
[1757897146475,71.87559401,241.52,241.51,0.06]
[1757897146789,72.55559401,241.52,241.51,0.06]
[1757897147178,72.57559401,241.52,241.51,0.06]
[1757897147897,74.06066135,241.52,241.51,0.06]
[1757897148395,41.76066135,241.52,241.51,0.06]
[1757897148593,74.06066135,241.52,241.51,0.06]
[1757897150375,74.04066135,241.52,241.51,0.06]
[1757897152584,72.55559401,241.52,241.51,0.06]
[1757897152794,74.04066135,241.52,241.51,0.06]
[1757897153687,78.1811052,241.52,241.51,0.06]
[1757897154099,45.9011052,241.52,241.51,0.06]
[1757897154482,78.1811052,241.52,241.51,0.06]
[1757897154897,45.9011052,241.52,241.51,0.06]
[1757897155103,78.1811052,241.52,241.51,0.06]
[1757897158521,44.41603786,241.52,241.51,0.06]
[1757897158684,78.1611052,241.52,241.51,0.06]
[1757897159198,45.9011052,241.52,241.51,0.06]
[1757897159401,78.1611052,241.52,241.51,0.06]
[1757897160887,39.59559401,241.49,241.48,0.06]
[1757897161077,73.34066135,241.49,241.48,0.06]
[1757897161279,45.88161956,241.49,241.48,0.06]
[1757897161804,78.16161956,241.49,241.48,0.06]
[1757897162598,77.48161956,241.49,241.48,0.06]
[1757897162793,45.22161956,241.49,241.48,0.06]
[1757897162991,41.08066135,241.49,241.48,0.76]
[1757897163183,71.85559401,241.49,241.48,0.76]
[1757897163383,73.34066135,241.49,241.48,0.06]
[1757897163583,77.48161956,241.49,241.48,0.06]
[1757897164505,45.22161956,241.49,241.48,0.06]
[1757897164688,41.08066135,241.49,241.48,0.06]
[1757897164888,73.34066135,241.49,241.48,0.06]
[1757897165213,13.59559401,241.49,241.48,0.76]
[1757897165510,47.34066135,241.49,241.48,0.76]
[1757897165684,47.34066135,241.49,241.48,0.06]
[1757897166191,15.08066135,241.49,241.48,0.76]
[1757897166396,47.34066135,241.49,241.48,0.76]
[1757897167814,46.80591232,241.49,241.48,0.76]
[1757897168390,46.80591232,241.49,241.48,0.06]
[1757897174013,14.54591232,241.49,241.48,0.06]
[1757897174316,13.59559401,241.49,241.48,0.75]
[1757897174520,45.79559401,241.49,241.48,0.75]
[1757897175022,0.03,241.51,241.48,19.84144801]
[1757897175189,0.03,241.51,241.5,0.95031831]
[1757897175390,32.25,241.51,241.5,0.95031831]
[1757897175612,32.25,241.51,241.5,1.64031831]
[1757897176503,32.25,241.51,241.5,5.78110505]
[1757897176704,0.03,241.51,241.5,5.78110505]
[1757897176900,32.27,241.51,241.5,5.78110505]
[1757897178003,0.03,241.51,241.5,5.78110505]
[1757897178319,26.03,241.51,241.5,19.78110505]
[1757897182397,0.03,241.51,241.5,19.78110505]
[1757897182721,26.03,241.51,241.5,19.78110505]
[1757897183603,0.03,241.51,241.5,19.78110505]
[1757897183818,26.03,241.51,241.5,19.78110505]
[1757897185020,0.03,241.51,241.5,19.78110505]
[1757897185224,26.03,241.51,241.5,19.78110505]
[1757897185434,26.03,241.51,241.5,18.83078674]
[1757897185600,26.03,241.51,241.5,19.78110505]
[1757897186810,0.03,241.51,241.5,19.78110505]
[1757897187513,0.03,241.51,241.5,19.09110505]
[1757897187718,26.03,241.51,241.5,18.89078674]
[1757897188826,26.03,241.51,241.5,19.84110505]
[1757897189025,26.03,241.51,241.5,14.06]
[1757897189627,0.03,241.51,241.5,14.06]
[1757897190428,15.25591232,241.51,241.5,0.06]
[1757897191204,47.45591232,241.51,241.5,0.06]
[1757897195238,51.59652761,241.51,241.5,0.06]
[1757897197217,47.45591232,241.51,241.5,0.06]
[1757897197418,14.57591232,241.51,241.5,0.06]
[1757897197728,45.82559401,241.51,241.5,0.06]
[1757897198236,46.77591232,241.51,241.5,0.06]
[1757897199030,47.43591232,241.51,241.5,0.06]
[1757897199236,51.57652761,241.51,241.5,0.06]
[1757897202210,71.82559401,241.51,241.5,0.06]
[1757897203108,72.77591232,241.51,241.5,0.06]
[1757897203614,71.82559401,241.51,241.5,0.06]
[1757897204538,72.77591232,241.51,241.5,0.06]
[1757897207049,39.62559401,241.51,241.5,0.78]
[1757897207258,71.82559401,241.51,241.5,0.78]
[1757897207461,0.03,241.51,241.5,5.87110505]
[1757897208739,0.03,241.51,241.5,4.92078674]
[1757897209856,32.23,241.51,241.5,0.06]
[1757897210851,58.23,241.51,241.5,0.06]
[1757897212859,72.77591232,241.51,241.5,0.06]
[1757897213853,39.62559401,241.51,241.5,0.06]
[1757897214155,71.82559401,241.51,241.5,0.78]
[1757897214656,71.82559401,241.51,241.5,0.06]
[1757897215483,73.48591232,241.51,241.5,0.06]
[1757897216263,77.62652761,241.51,241.5,0.06]
[1757897219661,77.80866174,241.51,241.5,0.06]
[1757897219861,82.91482943,241.51,241.5,0.06]
[1757897220972,14.54591232,241.49,241.48,0.06]
[1757897221168,47.98747688,241.49,241.48,0.06]
[1757897221473,52.74421414,241.49,241.48,0.06]
[1757897221853,23.97517235,241.49,241.48,0.06]
[1757897222181,56.17517235,241.49,241.48,0.06]
[1757897222346,23.97517235,241.49,241.48,0.06]
[1757897222544,52.03421414,241.49,241.48,0.06]
[1757897223353,19.83421414,241.49,241.48,0.06]
[1757897223554,13.59559401,241.49,241.48,0.76]
[1757897223875,45.79559401,241.49,241.48,4.9011297]
[1757897224763,0.03,241.51,241.48,5.85144801]
[1757897224954,0.03,241.51,241.5,0.95031831]
[1757897225460,0.03,241.51,241.5,1.65031831]
[1757897225766,13.62559401,241.51,241.48,0.06]
[1757897225960,13.62559401,241.51,241.49,0.7]
[1757897226159,26.0,241.49,241.48,4.20110576]
[1757897226751,26.0,241.49,241.48,0.76]
[1757897226951,39.59559401,241.49,241.48,0.06]
[1757897227176,39.59559401,241.49,241.48,0.76]
[1757897227774,32.22,241.49,241.48,0.76]
[1757897228455,0.03,241.51,241.49,4.14095821]
[1757897228654,0.03,241.51,241.49,5.09127652]
[1757897228863,0.03,241.51,241.5,0.68]
[1757897229061,26.0,241.49,241.48,0.06]
[1757897229261,13.62559401,241.51,241.48,0.06]
[1757897229262,32.24,241.5,241.48,0.06]
[1757897229464,13.59559401,241.49,241.48,0.06]
[1757897230978,15.79041164,241.49,241.48,0.06]
[1757897231789,15.97254577,241.49,241.48,0.06]
[1757897232072,21.07871346,241.49,241.48,0.06]
[1757897232752,53.35871346,241.49,241.48,0.06]
[1757897233464,57.95161602,241.49,241.48,0.06]
[1757897233659,61.36564138,241.49,241.48,0.06]
[1757897233876,4.1411297,241.48,241.47,0.06]
[1757897234084,4.1411297,241.48,241.43,0.06]
[1757897234085,39.59559401,241.44,241.43,0.06]
[1757897234375,84.53804851,241.44,241.43,0.06]
[1757897234577,85.24804851,241.44,241.43,0.06]
[1757897235350,13.59559401,241.35,241.33,0.68]
[1757897235667,39.59559401,241.31,241.28,5.62935072]
[1757897235868,26.0,241.29,241.28,5.62935072]
[1757897236087,26.0,241.29,241.28,4.14453309]
[1757897236379,26.0,241.29,241.28,4.82453309]
[1757897237067,13.59559401,241.29,241.28,0.68]
[1757897237787,16.98220405,241.29,241.28,0.68]
[1757897238172,13.59559401,241.29,241.28,0.68]
[1757897239465,15.08041164,241.29,241.28,0.68]
[1757897240267,13.59559401,241.29,241.28,0.68]
[1757897240462,13.59559401,241.29,241.28,0.74]
[1757897240761,45.93559401,241.29,241.28,0.74]
[1757897242079,1.48481763,241.34,241.29,4.14439056]
[1757897242290,4.01483771,241.45,241.3,2.16481763]
[1757897242291,13.59559401,241.32,241.3,2.16481763]
[1757897242489,13.59559401,241.32,241.29,4.14439056]
[1757897242490,26.0,241.3,241.29,4.14439056]
[1757897243088,26.0,241.3,241.29,4.82439056]
[1757897244894,26.0,241.3,241.29,6.30920819]
[1757897245888,26.0,241.3,241.29,16.6701846]
[1757897246670,26.0,241.33,241.29,30.6701846]
[1757897246858,26.0,241.32,241.3,0.68]
[1757897247370,26.0,241.32,241.31,0.68]
[1757897247588,13.59559401,241.32,241.3,14.0]
[1757897248179,13.59559401,241.32,241.3,14.68]
[1757897248782,13.59559401,241.32,241.31,4.14404707]
[1757897249285,26.0,241.35,241.31,4.82404707]
[1757897249580,45.93559401,241.33,241.32,0.68]
[1757897249781,45.93559401,241.33,241.31,4.14404707]
[1757897249782,26.0,241.3,241.29,4.82435949]
[1757897252892,13.59559401,241.29,241.28,0.06]
[1757897253076,15.08041164,241.29,241.28,0.06]
[1757897253399,15.79041164,241.29,241.28,0.06]
[1757897253575,15.08041164,241.29,241.28,0.06]
[1757897255596,15.79041164,241.29,241.28,0.06]
[1757897256603,19.9348022,241.29,241.28,0.06]
[1757897258504,15.79041164,241.29,241.28,0.06]
[1757897259103,19.9348022,241.29,241.28,0.06]
[1757897259685,52.2548022,241.29,241.28,0.06]
[1757897262177,47.40041164,241.29,241.28,0.06]
[1757897262603,45.91559401,241.29,241.28,0.06]
[1757897263201,47.40041164,241.29,241.28,0.06]
[1757897263404,48.10041164,241.29,241.28,0.06]
[1757897263623,47.40041164,241.29,241.28,0.06]
[1757897264300,52.2448022,241.29,241.28,0.06]
[1757897264507,47.40041164,241.29,241.28,0.06]
[1757897265090,47.38041164,241.29,241.28,0.06]
[1757897265801,45.89559401,241.29,241.28,0.06]
[1757897266189,45.87559401,241.29,241.28,0.76]
[1757897266715,47.36041164,241.29,241.28,0.06]
[1757897267292,45.87559401,241.29,241.28,0.06]
[1757897269817,47.36041164,241.29,241.28,0.06]
[1757897270114,15.08041164,241.29,241.28,0.06]
[1757897270293,47.36041164,241.29,241.28,0.06]
[1757897271907,51.5048022,241.29,241.28,0.06]
[1757897272114,52.2048022,241.29,241.28,0.06]
[1757897274110,47.34041164,241.29,241.28,0.06]
[1757897275598,45.85559401,241.29,241.28,0.76]
[1757897276020,45.87559401,241.29,241.28,4.90456233]
[1757897276218,13.59559401,241.29,241.28,4.90456233]
[1757897276515,13.59559401,241.29,241.28,0.76]
[1757897276720,13.59559401,241.29,241.28,4.90456233]
[1757897277692,45.87559401,241.3,241.28,0.76]
[1757897278006,26.0,241.29,241.28,0.06]
[1757897279408,26.0,241.29,241.28,4.90456233]
[1757897280402,26.0,241.29,241.28,0.76]
[1757897280926,26.0,241.29,241.28,4.90456233]
[1757897281142,26.0,241.3,241.28,6.38937996]
[1757897281295,26.0,241.3,241.29,1.48481763]
[1757897281503,26.0,241.3,241.29,2.18481763]
[1757897281916,26.0,241.3,241.29,6.32920819]
[1757897282307,45.83559401,241.33,241.29,6.32920819]
[1757897282308,3.30381814,241.37,241.29,30.6901846]
[1757897282520,45.83559401,241.36,241.32,1.48481763]
[1757897282716,26.0,241.33,241.32,1.48481763]
[1757897283115,0.65,241.41,241.32,1.48481763]
[1757897283116,13.59559401,241.42,241.32,1.48481763]
[1757897283424,1.51481763,241.43,241.38,1.48481763]
[1757897283425,0.03,241.43,241.38,1.48481763]
[1757897283736,26.0,241.4,241.39,2.18481763]
[1757897284406,13.59559401,241.42,241.4,4.14250207]
[1757897284628,13.62559401,241.43,241.4,4.14250207]
[1757897284835,26.0,241.41,241.4,4.84250207]
[1757897285506,26.0,241.4,241.34,10.35869318]
[1757897285709,1.48481763,241.38,241.34,0.7]
[1757897285909,39.59559401,241.37,241.32,0.7]
[1757897286157,39.59559401,241.37,241.33,0.7]
[1757897286318,39.59559401,241.37,241.31,4.14404707]
[1757897286319,1.48481763,241.36,241.31,4.14404707]
[1757897286520,1.48481763,241.36,241.29,0.7]
[1757897286521,26.0,241.32,241.29,0.7]
[1757897286721,1.48481763,241.34,241.29,0.7]
[1757897286722,26.0,241.31,241.29,0.7]
[1757897286925,26.0,241.31,241.28,0.06]
[1757897287123,26.0,241.31,241.3,0.7]
[1757897288746,26.0,241.31,241.28,4.20451773]
[1757897288747,13.59559401,241.3,241.28,14.06]
[1757897289445,32.3,241.33,241.29,0.72]
[1757897289619,26.0,241.3,241.28,19.68928827]
[1757897289818,26.0,241.3,241.28,19.15589021]
[1757897290024,26.0,241.3,241.28,29.51729604]
[1757897290234,32.3,241.35,241.29,1.67141957]
[1757897290455,32.3,241.35,241.3,1.67141957]
[1757897290632,32.3,241.35,241.31,0.72]
[1757897290825,32.3,241.35,241.32,0.72]
[1757897291929,1.64141957,241.34,241.3,4.14412209]
[1757897292152,26.0,241.3,241.28,18.20444301]
[1757897292448,26.0,241.3,241.28,18.92444301]
[1757897295226,26.0,241.3,241.28,14.06]
[1757897295539,26.69,241.29,241.28,0.06]
[1757897296041,26.0,241.29,241.28,0.06]
[1757897296244,26.0,241.29,241.28,4.92444931]
[1757897297042,26.0,241.29,241.28,4.20444931]
[1757897297723,26.69,241.29,241.28,0.06]
[1757897298429,26.0,241.29,241.28,0.06]
[1757897300029,32.28,241.3,241.28,0.06]
[1757897300344,32.28,241.3,241.28,14.06]
[1757897300552,32.97,241.3,241.28,14.06]
[1757897301122,33.92141957,241.3,241.28,14.06]
[1757897301339,0.69,241.29,241.28,14.06]
[1757897301556,15.23701358,241.29,241.28,14.06]
[1757897301725,15.23701358,241.29,241.28,0.06]
[1757897303619,19.38140414,241.29,241.28,0.06]
[1757897309025,45.83559401,241.29,241.28,0.06]
[1757897309949,13.59559401,241.29,241.28,0.06]
[1757897310140,26.0,241.29,241.28,0.78]
[1757897310336,32.27,241.3,241.28,0.78]
[1757897310524,32.27,241.3,241.28,0.06]
[1757897310721,32.27,241.3,241.28,0.78]
[1757897311837,32.27,241.3,241.28,0.06]
[1757897313547,13.59559401,241.29,241.28,0.06]
[1757897314452,45.83559401,241.29,241.28,0.06]
[1757897314638,13.59559401,241.29,241.28,0.06]
[1757897315030,45.83559401,241.29,241.28,0.78]
[1757897315954,45.83559401,241.29,241.28,0.06]
[1757897317057,45.83559401,241.29,241.28,4.20456233]
[1757897317438,0.03,241.3,241.28,4.92456233]
[1757897317643,32.27,241.3,241.28,4.92456233]
[1757897317833,0.03,241.3,241.28,4.20456233]
[1757897318029,0.03,241.3,241.29,1.67141957]
[1757897318551,0.03,241.3,241.29,15.67141957]
[1757897318936,0.03,241.3,241.29,19.81581013]
[1757897319126,0.03,241.3,241.29,5.81581013]
[1757897321858,0.03,241.3,241.29,0.72]
[1757897322059,0.03,241.3,241.29,5.81581013]
[1757897323561,0.03,241.3,241.29,19.81581013]
[1757897323770,0.03,241.35,241.3,13.97]
[1757897324068,0.03,241.35,241.34,0.95141957]
[1757897324233,0.03,241.35,241.34,14.92141957]
[1757897324438,0.03,241.35,241.34,15.64141957]
[1757897325840,0.03,241.35,241.34,19.78495151]
[1757897328851,0.03,241.38,241.36,13.94]
[1757897329051,0.03,241.38,241.37,0.95141957]
[1757897329260,0.03,241.38,241.37,1.67141957]
[1757897329655,0.03,241.38,241.37,0.95141957]
[1757897331058,0.03,241.38,241.37,5.81443651]
[1757897332970,0.03,241.38,241.37,19.75443651]
[1757897334371,0.03,241.38,241.37,51.97443651]
[1757897334680,0.03,241.4,241.37,195.51628056]
[1757897334855,0.03,241.43,241.39,0.95141957]
[1757897335051,0.03,241.43,241.42,0.95141957]
[1757897335261,0.03,241.43,241.42,47.08141957]
[1757897335478,0.03,241.43,241.42,47.78141957]
[1757897336193,0.03,241.43,241.42,15.56141957]
[1757897336352,0.03,241.43,241.42,47.78141957]
[1757897337176,0.03,241.43,241.42,18.05215889]
[1757897337349,0.03,241.43,241.42,19.00357846]
[1757897340391,0.03,241.43,241.42,19.70357846]
[1757897340754,0.03,241.43,241.42,51.94357846]
[1757897343380,0.03,241.43,241.42,18.75215889]
[1757897343700,0.69,241.43,241.42,13.91]
[1757897343991,1.64141957,241.43,241.4,13.91]
[1757897344180,26.66,241.42,241.4,13.91]
[1757897344480,0.66,241.41,241.4,13.91]
[1757897346592,0.66,241.41,241.4,18.05250207]
[1757897346894,26.0,241.41,241.4,18.05250207]
[1757897347191,26.0,241.41,241.4,19.70392164]
[1757897347694,0.03,241.43,241.41,13.91]
[1757897347981,0.03,241.43,241.42,33.17141957]
[1757897348285,0.03,241.43,241.42,47.78141957]
[1757897348676,0.03,241.43,241.42,51.92357846]
[1757897349690,0.03,241.43,241.42,51.22357846]
[1757897350078,0.03,241.51,241.44,20.0]
[1757897350279,0.03,241.56,241.5,0.95141957]
[1757897350480,0.03,241.56,241.54,0.95141957]
[1757897350699,0.03,241.56,241.54,37.39152058]
[1757897350872,0.03,241.56,241.54,38.07152058]
[1757897351874,0.03,241.56,241.54,38.60288603]
[1757897353003,1e-08,241.55,241.54,38.60288603]
[1757897353582,1e-08,241.55,241.54,52.79842364]
[1757897353786,1e-08,241.55,241.54,52.38441354]
[1757897353986,1e-08,241.55,241.54,54.04440565]
[1757897355117,0.1,241.6,241.54,54.04440565]
[1757897355118,1e-08,241.6,241.58,20.0]
[1757897355410,1e-08,241.66,241.59,34.17670943]
[1757897355610,1e-08,241.66,241.57,20.0]
[1757897355611,1e-08,241.66,241.65,1.48278502]
[1757897355793,1e-08,241.66,241.65,33.88278502]
[1757897357085,1e-08,241.66,241.65,38.02100144]
[1757897360009,1e-08,241.66,241.65,38.08100144]
[1757897360504,1e-08,241.66,241.65,51.99100144]
[1757897360809,0.68000001,241.66,241.65,13.97]
[1757897361018,2.16278503,241.66,241.65,0.06]
[1757897361604,0.68000001,241.66,241.65,0.06]
[1757897361811,1e-08,241.66,241.65,0.06]
[1757897362011,1e-08,241.66,241.65,1.54278502]
[1757897362385,1e-08,241.66,241.65,48.57278502]
[1757897363494,1e-08,241.66,241.65,13.97]
[1757897363720,0.68000001,241.66,241.65,13.97]
[1757897364586,1e-08,241.66,241.65,13.97]
[1757897364794,26.68000001,241.66,241.65,13.97]
[1757897365232,26.00000001,241.66,241.65,15.45278502]
[1757897365411,1e-08,241.66,241.65,15.45278502]
[1757897367544,1e-08,241.66,241.65,16.13278502]
[1757897369840,1e-08,241.66,241.65,15.45278502]
[1757897370039,1e-08,241.66,241.65,13.97]
[1757897370338,1e-08,241.66,241.65,15.45278502]
[1757897370715,0.68000001,241.66,241.65,15.45278502]
[1757897371016,0.68000001,241.66,241.65,13.97]
[1757897373326,1e-08,241.66,241.65,15.45278502]
[1757897373836,1e-08,241.66,241.65,13.97]
[1757897375637,1e-08,241.66,241.65,48.55278502]
[1757897378718,1e-08,241.66,241.65,15.45278502]
[1757897378918,1e-08,241.66,241.65,47.87278502]
[1757897379942,1e-08,241.66,241.65,18.10821642]
[1757897380433,1e-08,241.66,241.65,19.59100144]
[1757897381029,1e-08,241.66,241.65,20.28100144]
[1757897383766,1e-08,241.66,241.65,18.79821642]
[1757897383951,1e-08,241.66,241.65,20.28100144]
[1757897386326,0.03,241.7,241.69,13.84999999]
[1757897386521,0.03,241.7,241.69,15.33278501]
[1757897387051,0.03,241.7,241.69,15.92278501]
[1757897387352,0.03,241.7,241.69,148.72278501]
[1757897388226,1e-08,241.71,241.69,148.72278501]
[1757897388428,1e-08,241.71,241.7,38.69014538]
[1757897389463,1e-08,241.71,241.7,170.80014538]
[1757897390645,0.71000001,241.71,241.7,132.8]
[1757897390828,0.71000001,241.71,241.7,136.93736036]
[1757897392534,0.71000001,241.71,241.7,132.8]
[1757897392734,0.71000001,241.71,241.7,136.93736036]
[1757897393464,15.78837904,241.71,241.69,13.74999999]
[1757897393630,1e-08,241.71,241.69,46.10999999]
[1757897393832,1e-08,241.71,241.7,2.17278502]
[1757897394544,1e-08,241.71,241.7,6.31014538]
[1757897394747,1e-08,241.71,241.7,5.62014538]
[1757897394941,1e-08,241.71,241.7,6.28014538]
[1757897395368,1e-08,241.71,241.7,20.03014537]
[1757897396082,0.70000001,241.71,241.7,17.88736035]
[1757897396248,0.70000001,241.71,241.7,13.74999999]